bitfinex-derivatives/quotes_SOLF0:USTF0_20250520
["timestamp","ask_amount","ask_price","bid_price","bid_amount"]
[1747717229856,62.58,170.22,170.12,62.58]
[1747717230257,0.03773161,170.19,170.15,0.04374706]
[1747717232661,0.03773161,170.19,170.16,5.8753]
[1747717232970,5.91233161,170.19,170.15,0.04374706]
[1747717233871,0.03773161,170.19,170.15,0.04374706]
[1747717236471,0.03773161,170.19,170.16,5.8754]
[1747717237673,0.03773161,170.19,170.15,0.04374706]
[1747717238574,5.875,170.18,170.15,0.04374706]
[1747717239275,5.91213161,170.19,170.15,0.04374706]
[1747717239572,5.91213161,170.19,170.15,5.91934706]
[1747717241072,0.03773161,170.19,170.15,5.91934706]
[1747717242579,5.91213161,170.19,170.15,5.91934706]
[1747717242780,5.91213161,170.19,170.15,0.04374706]
[1747717243274,5.91213161,170.19,170.15,5.91944706]
[1747717243479,5.8748,170.18,170.15,0.04374706]
[1747717243878,0.03773161,170.19,170.15,0.04374706]
[1747717244177,62.6,170.18,170.15,0.04374706]
[1747717244477,5.8754,170.16,170.15,0.04374706]
[1747717244680,7.00232722,170.17,170.1,1.46958017]
[1747717244888,7.00232722,170.17,170.09,5.8777]
[1747717245179,5.8777,170.1,170.02,62.6]
[1747717245380,62.6,170.12,170.03,1.4700703]
[1747717245682,0.03860381,170.09,170.06,0.04368778]
[1747717246475,6.0717,170.18,170.06,0.04368778]
[1747717246476,62.6,170.16,170.07,1.46991216]
[1747717246672,62.6,170.16,170.07,3.46771216]
[1747717246879,62.6,170.16,170.1,5.8774]
[1747717247082,62.6,170.16,170.08,1.46991216]
[1747717247285,62.6,170.16,170.07,1.9978]
[1747717247482,0.04089471,170.13,170.1,0.04337682]
[1747717248287,0.04089471,170.13,170.11,5.877]
[1747717248581,0.04089471,170.13,170.1,0.04337682]
[1747717249584,0.04089471,170.13,170.1,5.92057682]
[1747717250185,0.04089471,170.13,170.1,0.04337682]
[1747717251481,5.877,170.12,170.1,0.04337682]
[1747717251680,62.6,170.12,170.1,0.04337682]
[1747717252684,5.8771,170.11,170.1,0.04337682]
[1747717253082,68.4769,170.12,170.1,0.04337682]
[1747717253386,62.6,170.12,170.1,0.04337682]
[1747717255086,68.4769,170.12,170.1,0.04337682]
[1747717256587,5.8771,170.11,170.1,0.04337682]
[1747717256781,62.6,170.12,170.1,0.04337682]
[1747717257889,68.4769,170.12,170.1,0.04337682]
[1747717258583,62.6,170.12,170.1,0.04337682]
[1747717258789,5.8771,170.11,170.1,0.04337682]
[1747717259985,7.00232722,170.11,170.04,5.8795]
[1747717260192,10.99062722,170.11,170.04,5.8795]
[1747717260584,5.8779,170.09,170.05,5.8791]
[1747717261082,5.8782,170.08,170.05,0.03877197]
[1747717261285,0.03880779,170.09,170.05,0.03877197]
[1747717263890,0.03880779,170.09,170.06,5.8786]
[1747717264189,0.03880779,170.09,170.05,0.03877197]
[1747717264591,0.03880779,170.09,170.06,5.8788]
[1747717265096,0.03880779,170.09,170.05,0.03877197]
[1747717265296,0.03880779,170.09,170.05,62.61877197]
[1747717266394,5.91690779,170.09,170.05,68.49767197]
[1747717266694,0.03880779,170.09,170.05,0.03877197]
[1747717267599,5.8789,170.06,170.05,0.03877197]
[1747717269501,7.00490039,170.06,169.97,5.8819]
[1747717270201,5.8808,170.01,169.97,5.8819]
[1747717270398,0.03823014,170.01,169.97,0.04373129]
[1747717270902,0.03823014,170.01,169.98,1.47065165]
[1747717271506,0.03823014,170.01,169.97,0.04373129]
[1747717271698,0.03823014,170.01,170.0,5.8807]
[1747717272506,62.58,170.12,170.0,68.46]
[1747717272709,62.58,170.12,170.01,1.47029485]
[1747717272910,62.58,170.12,170.07,5.8783]
[1747717273601,5.8775,170.1,170.08,0.03822946]
[1747717274004,0.04468691,170.11,170.08,0.03822946]
[1747717274209,5.8775,170.1,170.08,0.03822946]
[1747717274608,0.04468691,170.11,170.08,0.03822946]
[1747717275912,5.92188691,170.11,170.08,0.03822946]
[1747717276116,0.04468691,170.11,170.08,0.03822946]
[1747717276611,5.8775,170.1,170.08,0.03822946]
[1747717277210,5.8778,170.09,170.08,0.03822946]
[1747717277511,0.04468691,170.11,170.08,0.03822946]
[1747717278715,0.04468691,170.11,170.09,5.8778]
[1747717279612,0.04468691,170.11,170.1,5.8775]
[1747717282414,73.49700441,170.18,170.09,1.8897]
[1747717282718,73.49700441,170.18,170.1,64.04974001]
[1747717283117,73.49700441,170.18,170.11,1.46974001]
[1747717283318,0.03945291,170.16,170.14,5.8758]
[1747717284620,0.03945291,170.16,170.13,5.91539074]
[1747717284816,0.03945291,170.16,170.13,0.03909074]
[1747717285522,5.8758,170.15,170.13,0.03909074]
[1747717285918,0.03945291,170.16,170.13,0.03909074]
[1747717286113,5.8761,170.14,170.13,0.03909074]
[1747717290723,5.8758,170.15,170.13,0.03909074]
[1747717291019,0.03945291,170.16,170.13,0.03909074]
[1747717291425,0.03945291,170.16,170.14,5.8759]
[1747717291624,0.03945291,170.16,170.13,0.03909074]
[1747717291822,5.8758,170.15,170.13,0.03909074]
[1747717292525,5.91495291,170.16,170.13,0.03909074]
[1747717293422,0.03945291,170.16,170.13,0.03909074]
[1747717293821,0.03945291,170.16,170.14,5.8758]
[1747717294229,0.03945291,170.16,170.13,0.03909074]
[1747717295123,5.8761,170.14,170.13,0.03909074]
[1747717297724,66.6864,170.15,170.06,1.46985453]
[1747717297931,7.00490039,170.12,170.06,1.46985453]
[1747717298117,62.68,170.11,170.06,1.46985453]
[1747717298323,62.68,170.11,170.03,2.015]
[1747717298519,5.8784,170.08,170.04,7.34964031]
[1747717298728,5.91964731,170.08,170.04,7.39346608]
[1747717298920,5.91964731,170.08,170.05,1.47014031]
[1747717299325,5.8785,170.07,170.05,1.47014031]
[1747717299925,5.8785,170.07,170.04,5.92332577]
[1747717300129,5.8785,170.07,170.04,0.04382577]
[1747717300326,0.04124731,170.08,170.04,0.04382577]
[1747717300327,5.8792,170.05,170.04,0.04382577]
[1747717306630,68.5788,170.07,170.04,0.04382577]
[1747717307533,5.8789,170.06,170.04,0.04382577]
[1747717309333,62.7,170.07,170.04,0.04382577]
[1747717309937,68.5789,170.07,170.04,0.04382577]
[1747717310537,0.04124731,170.08,170.04,0.04382577]
[1747717310932,0.04124731,170.08,170.06,5.8788]
[1747717312442,0.04124731,170.08,170.05,5.8791]
[1747717313840,0.04124731,170.08,170.04,5.92312577]
[1747717314240,5.91954731,170.08,170.04,0.04382577]
[1747717314441,0.04124731,170.08,170.04,0.04382577]
[1747717314740,0.04124731,170.08,170.05,5.8791]
[1747717315041,0.04124731,170.08,170.04,0.04382577]
[1747717316033,0.04124731,170.08,170.05,7.34905619]
[1747717316543,0.04124731,170.08,170.05,5.8789]
[1747717317243,5.91944731,170.08,170.04,5.92332577]
[1747717317435,0.04124731,170.08,170.04,0.04382577]
[1747717318443,5.8788,170.07,170.04,0.04382577]
[1747717318947,0.04124731,170.08,170.04,0.04382577]
[1747717319342,0.04124731,170.08,170.05,7.34926634]
[1747717319850,0.04124731,170.08,170.05,5.8791]
[1747717320347,0.04124731,170.08,170.04,0.04382577]
[1747717320745,0.04124731,170.08,170.07,5.8785]
[1747717321848,0.04124731,170.08,170.07,7.34831488]
[1747717322549,5.8761,170.15,170.11,5.877]
[1747717322748,62.58,170.17,170.07,1.46981488]
[1747717323047,62.58,170.17,170.07,7.00490039]
[1747717323247,1.9594,170.19,170.07,7.00490039]
[1747717323449,1.9594,170.19,170.08,1.46955385]
[1747717323645,0.04328523,170.15,170.12,0.03904328]
[1747717323847,0.04328523,170.15,170.13,1.46955385]
[1747717324850,0.04328523,170.15,170.12,0.03904328]
[1747717325050,0.04328523,170.15,170.14,5.8761]
[1747717326149,0.04328523,170.15,170.12,5.91554328]
[1747717326751,0.04328523,170.15,170.12,0.03904328]
[1747717326949,69.60818562,170.15,170.12,0.03904328]
[1747717327152,69.60818562,170.15,170.05,5.879]
[1747717327453,1.9837,170.14,170.06,1.47004308]
[1747717328053,2.0493,170.13,170.08,0.03814904]
[1747717328250,7.04695354,170.12,170.08,0.03814904]
[1747717328455,62.56,170.11,170.02,5.88]
[1747717328657,62.56,170.11,170.03,1.47034088]
[1747717329349,0.04199888,170.09,170.05,0.03840388]
[1747717330251,5.92009888,170.09,170.05,5.91730388]
[1747717331157,5.8782,170.08,170.05,0.03840388]
[1747717331561,0.04199888,170.09,170.05,0.03840388]
[1747717332259,0.04199888,170.09,170.06,1.47010991]
[1747717332758,0.04199888,170.09,170.07,5.8782]
[1747717333658,0.04199888,170.09,170.08,5.8782]
[1747717333854,0.04199888,170.09,170.05,0.03840388]
[1747717334260,0.04199888,170.09,170.05,5.91760388]
[1747717334760,5.91989888,170.09,170.05,5.91760388]
[1747717335860,0.04199888,170.09,170.05,5.91760388]
[1747717336058,0.04199888,170.09,170.05,0.03840388]
[1747717336268,5.8782,170.08,170.05,0.03840388]
[1747717336568,0.04199888,170.09,170.05,0.03840388]
[1747717337567,5.8782,170.08,170.05,0.03840388]
[1747717338366,5.91989888,170.09,170.05,0.03840388]
[1747717339372,0.04199888,170.09,170.05,0.03840388]
[1747717339871,5.8787,170.07,170.05,0.03840388]
[1747717341171,0.04199888,170.09,170.05,0.03840388]
[1747717341767,5.91989888,170.09,170.05,0.03840388]
[1747717341971,0.04199888,170.09,170.05,0.03840388]
[1747717342473,0.04199888,170.09,170.06,5.8786]
[1747717342771,0.04199888,170.09,170.05,0.03840388]
[1747717343171,0.04199888,170.09,170.06,1.47015754]
[1747717343773,0.04199888,170.09,170.07,1.47015754]
[1747717343968,0.04199888,170.09,170.08,5.8782]
[1747717344472,5.8782,170.08,170.05,0.03840388]
[1747717345775,5.8786,170.07,170.05,0.03840388]
[1747717345979,0.04199888,170.09,170.05,0.03840388]
[1747717346668,5.8788,170.07,170.05,0.03840388]
[1747717346876,0.04199888,170.09,170.05,0.03840388]
[1747717347073,5.8789,170.06,170.05,0.03840388]
[1747717347875,5.8786,170.07,170.05,0.03840388]
[1747717350983,5.8783,170.08,170.05,0.03840388]
[1747717351575,5.8785,170.07,170.05,0.03840388]
[1747717351778,0.04199888,170.09,170.05,0.03840388]
[1747717352169,16.6435349,170.15,170.07,7.00490039]
[1747717352472,16.6435349,170.15,170.08,64.02990504]
[1747717353174,0.04286949,170.13,170.12,5.8765]
[1747717353379,0.04286949,170.13,170.12,68.4365]
[1747717353982,0.04286949,170.13,170.12,69.90640504]
[1747717356986,0.04286949,170.13,170.12,64.02990504]
[1747717358384,0.04286949,170.13,170.12,69.90670504]
[1747717362482,0.04286949,170.13,170.12,68.4368]
[1747717363186,0.04286949,170.13,170.12,69.90620884]
[1747717364691,0.04286949,170.13,170.12,68.4368]
[1747717365594,0.04286949,170.13,170.12,69.90620884]
[1747717374693,0.04286949,170.13,170.12,7.34620884]
[1747717375001,0.04286949,170.13,170.1,0.038386]
[1747717375401,0.04286949,170.13,170.11,5.8771]
[1747717375800,0.04286949,170.13,170.11,5.8768]
[1747717376006,0.04286949,170.13,170.1,0.038386]
[1747717376803,0.04286949,170.13,170.11,5.8769]
[1747717378791,0.04286949,170.13,170.12,5.8768]
[1747717380804,0.04286949,170.13,170.11,5.8771]
[1747717381204,0.04286949,170.13,170.12,5.8768]
[1747717381909,0.04286949,170.13,170.12,7.34626677]
[1747717382711,0.04286949,170.13,170.12,1.46946677]
[1747717383005,0.04286949,170.13,170.1,0.038386]
[1747717384397,5.91936949,170.13,170.1,5.915886]
[1747717385114,5.91936949,170.13,170.1,0.038386]
[1747717385608,5.91936949,170.13,170.1,5.915686]
[1747717385609,0.04286949,170.13,170.1,5.915686]
[1747717386411,0.04286949,170.13,170.1,0.038386]
[1747717386801,0.04286949,170.13,170.11,1.46950561]
[1747717387004,0.04286949,170.13,170.12,68.3768]
[1747717388005,113.92410973,170.18,170.17,5.8751]
[1747717388311,508.12,170.25,170.12,63.96950561]
[1747717388312,2.0634,170.23,170.12,63.96950561]
[1747717388506,2.0634,170.23,170.13,1.46950561]
[1747717388706,2.0634,170.23,170.19,5.8743]
[1747717389007,2.0634,170.23,170.19,5.91570039]
[1747717389207,2.1084657,170.23,170.19,5.91570039]
[1747717391112,2.1084657,170.23,170.19,0.04140039]
[1747717391513,0.0450657,170.23,170.22,5.8733]
[1747717391711,0.0450657,170.23,170.19,0.04140039]
[1747717392612,0.0450657,170.23,170.2,5.8738]
[1747717392913,0.0450657,170.23,170.19,0.04140039]
[1747717393714,0.0450657,170.23,170.21,5.8736]
[1747717395415,0.0450657,170.23,170.19,0.04140039]
[1747717395605,0.0450657,170.23,170.11,1.9876]
[1747717395606,6.9983561,170.21,170.11,1.9876]
[1747717395810,2.0485,170.2,170.12,62.5]
[1747717396011,5.8747,170.18,170.13,1.46937961]
[1747717396511,5.8745,170.19,170.14,7.34527961]
[1747717396714,0.0387848,170.18,170.15,0.03862168]
[1747717397317,0.0387848,170.18,170.16,5.8754]
[1747717397817,0.0387848,170.18,170.15,5.91432168]
[1747717398212,5.8753,170.17,170.15,0.03862168]
[1747717398420,0.0387848,170.18,170.15,0.03862168]
[1747717400322,5.8753,170.17,170.15,0.03862168]
[1747717401322,0.0387848,170.18,170.15,0.03862168]
[1747717402728,0.0387848,170.18,170.17,5.8751]
[1747717403629,0.0387848,170.18,170.16,5.8753]
[1747717404030,0.0387848,170.18,170.15,0.03862168]
[1747717404330,0.0387848,170.18,170.17,5.8751]
[1747717405132,8.48e-05,170.18,170.17,5.8751]
[1747717405629,8.48e-05,170.18,170.15,1.95442168]
[1747717405630,1.9999,170.27,170.23,5.8728]
[1747717405824,1.9624,170.32,170.21,62.5]
[1747717406128,5.8703,170.31,170.22,62.5]
[1747717406630,0.043578,170.28,170.24,0.03809767]
[1747717406926,0.043578,170.28,170.25,5.872]
[1747717407127,0.043578,170.28,170.24,0.03809767]
[1747717407325,0.043578,170.28,170.25,62.5]
[1747717408128,0.043578,170.28,170.24,0.03809767]
[1747717408329,5.915178,170.28,170.24,0.03809767]
[1747717408528,0.043578,170.28,170.24,0.03809767]
[1747717408933,5.915178,170.28,170.24,0.03809767]
[1747717410321,0.043578,170.28,170.24,0.03809767]
[1747717410930,0.043578,170.28,170.25,5.8723]
[1747717412532,5.914878,170.28,170.24,5.91069767]
[1747717412931,0.043578,170.28,170.25,5.8723]
[1747717413232,0.043578,170.28,170.24,0.03809767]
[1747717413535,0.043578,170.28,170.26,5.8717]
[1747717415531,7.8e-05,170.28,170.27,5.8716]
[1747717417735,7.8e-05,170.28,170.27,7.33980717]
[1747717418236,7.8e-05,170.28,170.27,5.8716]
[1747717419739,7.8e-05,170.28,170.27,7.33969753]
[1747717422038,7.8e-05,170.28,170.27,5.8716]
[1747717425842,7.8e-05,170.28,170.27,7.7538]
[1747717429546,3.8576,170.39,170.27,1.8822]
[1747717429742,3.8576,170.39,170.28,1.9106]
[1747717430145,3.8576,170.39,170.31,5.8701]
[1747717430547,0.04382265,170.37,170.33,0.0441011]
[1747717430847,5.8687,170.36,170.33,0.0441011]
[1747717434450,5.91202265,170.37,170.33,0.0441011]
[1747717434654,0.04382265,170.37,170.33,0.0441011]
[1747717434853,0.04382265,170.37,170.34,5.8689]
[1747717435154,0.04382265,170.37,170.33,0.0441011]
[1747717435550,0.04382265,170.37,170.35,5.8687]
[1747717435747,0.04382265,170.37,170.33,0.0441011]
[1747717436253,0.04382265,170.37,170.34,5.8691]
[1747717436956,0.04382265,170.37,170.35,5.8688]
[1747717437255,0.04382265,170.37,170.33,0.0441011]
[1747717438157,0.04382265,170.37,170.34,5.8691]
[1747717438355,0.04382265,170.37,170.33,0.0441011]
[1747717439557,5.8685,170.36,170.33,0.0441011]
[1747717440754,0.04382265,170.37,170.33,0.0441011]
[1747717440952,0.04382265,170.37,170.33,62.4441011]
[1747717441153,0.04382265,170.37,170.36,5.8685]
[1747717442160,0.04382265,170.37,170.34,5.8689]
[1747717442357,0.04382265,170.37,170.35,1.46761569]
[1747717442857,0.04382265,170.37,170.36,1.46761569]
[1747717446062,5.91202265,170.37,170.36,1.46761569]
[1747717446261,0.04382265,170.37,170.33,0.0441011]
[1747717446455,5.8688,170.36,170.33,0.0441011]
[1747717446760,0.04382265,170.37,170.33,0.0441011]
[1747717446965,62.36,170.36,170.33,0.0441011]
[1747717447167,62.36,170.36,170.26,62.36]
[1747717447666,5.8699,170.32,170.28,5.8712]
[1747717447868,5.8699,170.32,170.26,62.36]
[1747717448070,0.04049295,170.31,170.27,0.04416412]
[1747717448261,0.04049295,170.31,170.27,5.91546412]
[1747717448457,0.04049295,170.31,170.27,0.04416412]
[1747717448662,0.04049295,170.31,170.3,5.8706]
[1747717449665,0.04049295,170.31,170.27,0.04416412]
[1747717450669,5.91089295,170.31,170.27,5.91546412]
[1747717451770,5.91089295,170.31,170.27,0.04416412]
[1747717452675,5.8707,170.3,170.27,0.04416412]
[1747717453672,5.91079295,170.31,170.27,5.91576412]
[1747717453872,0.04049295,170.31,170.27,0.04416412]
[1747717454273,0.04049295,170.31,170.27,5.91576412]
[1747717455172,5.91079295,170.31,170.27,5.91576412]
[1747717456367,5.871,170.29,170.27,0.04416412]
[1747717456769,0.04049295,170.31,170.27,0.04416412]
[1747717457071,0.04049295,170.31,170.28,5.871]
[1747717457270,0.04049295,170.31,170.27,0.04416412]
[1747717457973,5.91099295,170.31,170.27,0.04416412]
[1747717458169,0.04049295,170.31,170.27,0.04416412]
[1747717458568,0.04049295,170.31,170.28,5.8709]
[1747717459173,0.04049295,170.31,170.29,1.46819481]
[1747717459974,0.04049295,170.31,170.28,5.8709]
[1747717460267,5.91079295,170.31,170.27,5.91576412]
[1747717460475,0.04049295,170.31,170.27,0.04416412]
[1747717460876,0.04049295,170.31,170.28,1.46825066]
[1747717461073,5.8706,170.3,170.29,1.46825066]
[1747717461876,0.04049295,170.31,170.29,1.46825066]
[1747717462276,0.04049295,170.31,170.3,5.8706]
[1747717462476,0.04049295,170.31,170.3,7.33885066]
[1747717465881,0.04049295,170.31,170.3,1.46825066]
[1747717467376,68.30049295,170.31,170.27,0.04416412]
[1747717467575,1.9965,170.3,170.2,62.38]
[1747717468080,5.8719,170.27,170.22,5.8731]
[1747717468579,0.04338834,170.26,170.23,0.04393615]
[1747717469084,5.91538834,170.26,170.23,0.04393615]
[1747717470081,0.04338834,170.26,170.23,5.91693615]
[1747717470583,0.04338834,170.26,170.23,0.04393615]
[1747717470781,0.04338834,170.26,170.23,5.91683615]
[1747717471383,5.91548834,170.26,170.23,5.91683615]
[1747717471881,5.91548834,170.26,170.23,0.04393615]
[1747717472277,5.8727,170.24,170.23,0.04393615]
[1747717473081,7.88798834,170.26,170.23,0.04393615]
[1747717473282,0.04338834,170.26,170.23,0.04393615]
[1747717473575,0.04338834,170.26,170.24,5.8726]
[1747717473783,0.04338834,170.26,170.23,0.04393615]
[1747717474085,0.04338834,170.26,170.25,5.8723]
[1747717474482,0.04338834,170.26,170.24,5.8726]
[1747717476485,0.04338834,170.26,170.23,0.04393615]
[1747717477181,5.91538834,170.26,170.23,0.04393615]
[1747717477379,0.04338834,170.26,170.23,0.04393615]
[1747717478585,5.8726,170.25,170.23,0.04393615]
[1747717479783,5.8727,170.24,170.23,0.04393615]
[1747717482189,5.8738,170.21,170.17,5.875]
[1747717482386,62.38,170.23,170.15,5.8755]
[1747717482988,62.38,170.23,170.16,1.46920329]
[1747717483185,0.04015267,170.21,170.17,0.04218106]
[1747717483582,2.03595267,170.21,170.09,62.38]
[1747717483784,1.9958,170.21,170.09,62.38]
[1747717484187,5.8752,170.17,170.12,5.8767]
[1747717484490,0.03762125,170.16,170.13,0.04072818]
[1747717485189,0.03762125,170.16,170.13,5.91712818]
[1747717485788,0.03762125,170.16,170.13,0.04072818]
[1747717486190,7.01772456,170.16,170.13,0.04072818]
[1747717486381,7.01772456,170.16,170.08,5.8781]
[1747717486579,2.0493,170.15,170.08,5.8781]
[1747717486784,6.98010331,170.13,170.05,5.8792]
[1747717486988,6.98010331,170.13,170.03,62.4]
[1747717487384,0.03880082,170.1,170.06,0.0371249]
[1747717488187,5.8779,170.09,170.06,0.0371249]
[1747717488394,0.03880082,170.1,170.06,0.0371249]
[1747717488795,0.03880082,170.1,170.06,5.9159249]
[1747717491094,5.91640082,170.1,170.06,5.9159249]
[1747717491295,5.91640082,170.1,170.06,0.0371249]
[1747717491895,5.8779,170.09,170.06,0.0371249]
[1747717492395,0.03880082,170.1,170.06,0.0371249]
[1747717492689,5.8785,170.08,170.06,0.0371249]
[1747717492894,0.03880082,170.1,169.93,64.3107]
[1747717492895,62.42,170.07,169.93,64.3107]
[1747717493095,6.98010331,170.06,169.94,62.42]
[1747717493289,6.98010331,170.06,169.94,64.3796]
[1747717493485,64.3943,170.07,169.94,71.35970331]
[1747717493691,5.8789,170.06,169.94,71.35970331]
[1747717493892,0.03709388,170.02,169.98,0.04001867]
[1747717494089,0.03709388,170.02,169.99,62.42]
[1747717494289,0.03709388,170.02,170.01,5.8806]
[1747717494695,0.03709388,170.02,169.99,62.42]
[1747717495595,0.03709388,170.02,169.99,68.3011]
[1747717495991,0.03709388,170.02,169.99,62.42]
[1747717497597,0.03709388,170.02,170.01,5.8806]
[1747717499800,0.03709388,170.02,169.99,68.3011]
[1747717500294,0.03709388,170.02,169.99,5.8811]
[1747717500599,0.03709388,170.02,169.98,5.92161867]
[1747717501194,0.03709388,170.02,169.99,5.8813]
[1747717501699,0.03709388,170.02,169.98,0.04001867]
[1747717502196,5.8809,170.0,169.98,0.04001867]
[1747717503397,5.8806,170.01,169.98,0.04001867]
[1747717503799,6.98010331,170.01,169.98,0.04001867]
[1747717503998,5.8813,169.99,169.98,0.04001867]
[1747717506602,5.8827,169.95,169.91,68.3039]
[1747717506798,5.8827,169.95,169.91,5.8839]
[1747717507197,5.8831,169.94,169.9,5.8843]
[1747717507506,62.42,169.97,169.88,3.8986]
[1747717507703,0.03918484,169.94,169.91,0.04352324]
[1747717509403,5.92228484,169.94,169.91,0.04352324]
[1747717510004,5.8833,169.93,169.91,0.04352324]
[1747717510204,0.03918484,169.94,169.91,0.04352324]
[1747717511105,0.03918484,169.94,169.92,5.8834]
[1747717511806,0.03918484,169.94,169.91,5.92742324]
[1747717513008,0.03918484,169.94,169.92,5.8837]
[1747717513397,0.03918484,169.94,169.91,0.04352324]
[1747717513599,0.03918484,169.94,169.91,5.92742324]
[1747717513806,0.03918484,169.94,169.91,0.04352324]
[1747717514203,5.92228484,169.94,169.91,0.04352324]
[1747717514407,0.03918484,169.94,169.91,0.04352324]
[1747717515210,0.03918484,169.94,169.92,5.8834]
[1747717515409,0.03918484,169.94,169.91,0.04352324]
[1747717515810,62.42,169.97,169.91,0.04352324]
[1747717516109,62.44,170.01,169.91,0.04352324]
[1747717516605,68.3208,170.01,169.96,5.8821]
[1747717516802,68.3208,170.01,169.97,0.03879297]
[1747717517011,0.04371224,170.0,169.97,0.03879297]
[1747717517411,5.92471224,170.0,169.97,0.03879297]
[1747717517608,0.04371224,170.0,169.97,0.03879297]
[1747717518609,5.8813,169.99,169.97,0.03879297]
[1747717519206,5.92471224,170.0,169.97,0.03879297]
[1747717519808,0.04371224,170.0,169.97,0.03879297]
[1747717520015,5.8813,169.99,169.97,0.03879297]
[1747717520408,5.92471224,170.0,169.97,0.03879297]
[1747717521713,5.8813,169.99,169.97,0.03879297]
[1747717521910,0.04371224,170.0,169.97,0.03879297]
[1747717522413,5.8816,169.98,169.97,0.03879297]
[1747717523410,5.8829,169.95,169.91,5.8837]
[1747717523823,62.44,169.97,169.9,5.8843]
[1747717524415,0.04374922,169.95,169.92,0.03909691]
[1747717524717,5.92674922,169.95,169.92,0.03909691]
[1747717525315,5.8831,169.94,169.92,0.03909691]
[1747717526017,5.92644922,169.95,169.92,0.03909691]
[1747717526315,0.04374922,169.95,169.92,0.03909691]
[1747717527420,5.92644922,169.95,169.92,0.03909691]
[1747717528314,0.04374922,169.95,169.92,0.03909691]
[1747717529619,5.92644922,169.95,169.92,0.03909691]
[1747717531326,0.04374922,169.95,169.93,1.47133243]
[1747717531620,0.04374922,169.95,169.94,5.883]
[1747717532021,0.04374922,169.95,169.94,7.35433243]
[1747717532923,0.04374922,169.95,169.94,1.47133243]
[1747717533521,0.04374922,169.95,169.94,7.35433243]
[1747717533823,0.04374922,169.95,169.94,1.47133243]
[1747717534223,0.04374922,169.95,169.94,7.35433243]
[1747717534416,0.04374922,169.95,169.94,1.47133243]
[1747717537721,7.02385253,169.95,169.92,0.03909691]
[1747717537918,7.02385253,169.95,169.86,62.44]
[1747717538118,62.44,169.96,169.87,62.44]
[1747717538320,3.9477,169.97,169.87,62.44]
[1747717538623,1.9575,169.97,169.88,5.26369228]
[1747717538826,0.04184849,169.94,169.91,0.03793007]
[1747717539018,0.04184849,169.94,169.91,62.47793007]
[1747717539218,0.04184849,169.94,169.92,1.47129228]
[1747717540226,0.04184849,169.94,169.93,1.47129228]
[1747717542532,0.04184849,169.94,169.93,7.35459228]
[1747717543831,0.04184849,169.94,169.93,1.47129228]
[1747717548526,0.04184849,169.94,169.93,7.35459228]
[1747717553627,6.98010331,170.05,169.93,14.33139559]
[1747717553833,119.06516206,170.06,169.94,1.47129228]
[1747717554031,119.06516206,170.06,169.95,62.44]
[1747717554529,0.04426682,170.02,170.01,5.8803]
[1747717555130,0.04426682,170.02,170.01,7.35159228]
[1747717556641,1.9235,170.09,170.05,5.8791]
[1747717556940,5.8777,170.1,170.05,5.8791]
[1747717557141,6.98010331,170.1,170.01,1.47129228]
[1747717557433,6.98010331,170.1,170.01,62.42]
[1747717557632,0.04239483,170.07,170.04,0.03742074]
[1747717558038,5.8789,170.06,170.04,0.03742074]
[1747717558339,0.04239483,170.07,170.04,0.03742074]
[1747717559240,7.02249814,170.07,170.04,0.03742074]
[1747717559541,5.8792,170.05,170.04,0.03742074]
[1747717560942,0.04239483,170.07,170.04,0.03742074]
[1747717561344,0.04239483,170.07,170.05,5.8789]
[1747717561841,0.04239483,170.07,170.04,62.45742074]
[1747717562842,0.04239483,170.07,170.04,0.03742074]
[1747717563543,0.04239483,170.07,170.06,5.8788]
[1747717564043,0.04239483,170.07,170.06,7.34890993]
[1747717564244,0.04239483,170.07,170.06,5.8788]
[1747717564739,0.04239483,170.07,170.06,7.34884885]
[1747717566845,0.04239483,170.07,170.06,5.8788]
[1747717570744,0.04239483,170.07,170.04,0.03742074]
[1747717571246,5.8791,170.06,170.04,0.03742074]
[1747717571442,0.04239483,170.07,170.04,0.03742074]
[1747717571848,5.8788,170.06,170.04,0.03742074]
[1747717574247,0.04239483,170.07,170.04,0.03742074]
[1747717574845,5.92109483,170.07,170.04,0.03742074]
[1747717575151,0.04239483,170.07,170.04,0.03742074]
[1747717575544,0.04239483,170.07,170.04,5.91662074]
[1747717576150,0.04239483,170.07,170.04,0.03742074]
[1747717576750,0.04239483,170.07,170.05,5.8792]
[1747717577852,0.04239483,170.07,170.06,5.8788]
[1747717582158,0.04239483,170.07,170.04,0.03742074]
[1747717584559,0.04239483,170.07,170.04,5.91682074]
[1747717584761,0.04239483,170.07,170.04,0.03742074]
[1747717585659,0.04239483,170.07,170.06,5.8788]